[Event "*** Titled Tuesday Blitz"]
[Site "Chess.com"]
[Date "2020.04.28"]
[Round "6"]
[White "Carnivoras"]
[Black "Angry_Twin"]
[Result "0-1"]
[WhiteElo "2636"]
[BlackElo "2795"]
[TimeControl "180+1"]
[EndTime "11:09:05 PDT"]
[Termination "Angry_Twin won by resignation"]

1. d4 {[%clk 0:03:00.9]} 1... Nf6 {[%clk 0:02:59.5]} 2. Nf3 {[%clk 0:03:00.7]}
2... d5 {[%clk 0:02:59.3]} 3. Bg5 {[%clk 0:02:59.9]} 3... c5 {[%clk 0:02:58.6]}
4. c3 {[%clk 0:02:58.8]} 4... Nc6 {[%clk 0:02:58.7]} 5. e3 {[%clk 0:02:58.7]}
5... Qb6 {[%clk 0:02:58.9]} 6. Qb3 {[%clk 0:02:58.6]} 6... c4 {[%clk 0:02:58.8]}
7. Qxb6 {[%clk 0:02:58.6]} 7... axb6 {[%clk 0:02:58.7]} 8. Na3 {[%clk
0:02:55.5]} 8... Ne4 {[%clk 0:02:54.4]} 9. Bf4 {[%clk 0:02:51.4]} 9... Ra5
{[%clk 0:02:53.8]} 10. Nc2 {[%clk 0:02:41.9]} 10... Bf5 {[%clk 0:02:48.8]} 11.
Nb4 {[%clk 0:02:03.1]} 11... Nxb4 {[%clk 0:02:39.6]} 12. cxb4 {[%clk 0:02:02]}
12... Ra8 {[%clk 0:02:40.2]} 13. a3 {[%clk 0:01:56.1]} 13... e6 {[%clk
0:02:38.9]} 14. Rc1 {[%clk 0:01:53.5]} 14... Be7 {[%clk 0:02:37.4]} 15. Nd2
{[%clk 0:01:51.4]} 15... Nf6 {[%clk 0:02:06.3]} 16. Be2 {[%clk 0:01:48.2]} 16...
O-O {[%clk 0:02:05.6]} 17. O-O {[%clk 0:01:45.1]} 17... Rfc8 {[%clk 0:02:06.1]}
18. Nb1 {[%clk 0:01:43.6]} 18... Bxb1 {[%clk 0:02:00.6]} 19. Rxb1 {[%clk
0:01:44.5]} 19... c3 {[%clk 0:02:01.2]} 20. h3 {[%clk 0:01:12.9]} 20... cxb2
{[%clk 0:01:57.4]} 21. Rxb2 {[%clk 0:01:13.8]} 21... Rxa3 {[%clk 0:01:57.7]} 22.
Rfb1 {[%clk 0:01:11.6]} 22... h6 {[%clk 0:01:56.7]} 23. Bf3 {[%clk 0:01:10.6]}
23... Ne8 {[%clk 0:01:45.4]} 24. e4 {[%clk 0:01:06.4]} 24... Nf6 {[%clk
0:00:53.9]} 25. e5 {[%clk 0:00:56]} 25... Nd7 {[%clk 0:00:51.5]} 26. Be2 {[%clk
0:00:55.2]} 26... Nb8 {[%clk 0:00:48.7]} 27. b5 {[%clk 0:00:49.2]} 27... Nd7
{[%clk 0:00:48.4]} 28. Kh2 {[%clk 0:00:39.1]} 28... Bg5 {[%clk 0:00:48.2]} 29.
Bg3 {[%clk 0:00:30.3]} 29... Rcc3 {[%clk 0:00:36.6]} 30. Bf1 {[%clk 0:00:21.2]}
30... Nf8 {[%clk 0:00:35.8]} 31. h4 {[%clk 0:00:14.3]} 31... Be7 {[%clk
0:00:35.3]} 32. h5 {[%clk 0:00:14.7]} 32... Nh7 {[%clk 0:00:35.3]} 33. Be2
{[%clk 0:00:14.8]} 33... Ng5 {[%clk 0:00:35.5]} 34. Bf4 {[%clk 0:00:12.8]} 34...
Ne4 {[%clk 0:00:33.7]} 35. f3 {[%clk 0:00:12.8]} 35... Bg5 {[%clk 0:00:26.1]}
36. Bxg5 {[%clk 0:00:05.5]} 36... Nxg5 {[%clk 0:00:27]} 37. Kg1 {[%clk 0:00:05]}
37... f6 {[%clk 0:00:25.5]} 38. exf6 {[%clk 0:00:04.6]} 38... gxf6 {[%clk
0:00:26.4]} 39. Bf1 {[%clk 0:00:05.1]} 39... Kf7 {[%clk 0:00:23]} 40. Re1 {[%clk
0:00:04.9]} 40... Ke7 {[%clk 0:00:14]} 41. Rd2 {[%clk 0:00:04.3]} 41... Kd6
{[%clk 0:00:14.2]} 42. Rdd1 {[%clk 0:00:02.9]} 42... e5 {[%clk 0:00:14]} 43.
dxe5+ {[%clk 0:00:02.7]} 43... fxe5 {[%clk 0:00:14.9]} 44. Rd2 {[%clk
0:00:03.3]} 44... d4 {[%clk 0:00:14.8]} 45. Red1 {[%clk 0:00:04.2]} 45... Ne6
{[%clk 0:00:14.3]} 46. Be2 {[%clk 0:00:04.6]} 46... Nf4 {[%clk 0:00:14.7]} 47.
Bf1 {[%clk 0:00:05.5]} 47... Re3 {[%clk 0:00:14.6]} 48. Rf2 {[%clk 0:00:05.5]}
48... Rac3 {[%clk 0:00:14.4]} 49. Rfd2 {[%clk 0:00:06.4]} 49... d3 {[%clk
0:00:14.6]} 50. Ra2 {[%clk 0:00:06.3]} 50... Nd5 {[%clk 0:00:07.4]} 51. Ra7
{[%clk 0:00:06]} 51... Rc2 {[%clk 0:00:05.7]} 52. Rxd3 {[%clk 0:00:05.3]} 52...
Rxd3 {[%clk 0:00:05.4]} 53. Bxd3 {[%clk 0:00:05]} 53... Rd2 {[%clk 0:00:06.3]}
54. Bf1 {[%clk 0:00:05.6]} 54... Ne3 {[%clk 0:00:06.7]} 55. Ra8 {[%clk
0:00:04.8]} 55... Kc5 {[%clk 0:00:05.5]} 56. Rc8+ {[%clk 0:00:04.9]} 56... Kb4
{[%clk 0:00:05.9]} 57. Rc1 {[%clk 0:00:04.3]} 57... Nxf1 {[%clk 0:00:04.2]} 58.
Rb1+ {[%clk 0:00:04]} 58... Kc5 {[%clk 0:00:03.4]} 59. Kxf1 {[%clk 0:00:04.5]}
59... Kd4 {[%clk 0:00:03.6]} 60. Rb4+ {[%clk 0:00:04.2]} 60... Kc5 {[%clk
0:00:03.7]} 61. Re4 {[%clk 0:00:04.4]} 61... Rd5 {[%clk 0:00:04]} 62. Rg4 {[%clk
0:00:04.5]} 62... Kxb5 {[%clk 0:00:02.5]} 63. Rg6 {[%clk 0:00:05.1]} 63... Ka5
{[%clk 0:00:03.4]} 64. Rxh6 {[%clk 0:00:05.4]} 64... b5 {[%clk 0:00:04.3]} 65.
Rh8 {[%clk 0:00:05.5]} 65... b4 {[%clk 0:00:04.7]} 66. h6 {[%clk 0:00:06]} 66...
Rd7 {[%clk 0:00:03.8]} 67. h7 {[%clk 0:00:04.4]} 67... Kb6 {[%clk 0:00:03.4]}
68. Re8 {[%clk 0:00:03.3]} 68... Rxh7 {[%clk 0:00:03.5]} 69. Rxe5 {[%clk
0:00:04.2]} 69... Rc7 {[%clk 0:00:04.1]} 70. Re6+ {[%clk 0:00:04.2]} 70... Kb5
{[%clk 0:00:04.2]} 71. Re2 {[%clk 0:00:03.8]} 71... b3 {[%clk 0:00:04.3]} 72. g4
{[%clk 0:00:04.4]} 72... Kb4 {[%clk 0:00:04.6]} 73. g5 {[%clk 0:00:04.9]} 73...
Rc4 {[%clk 0:00:04.4]} 74. Kf2 {[%clk 0:00:04.8]} 74... Ka3 {[%clk 0:00:02.5]}
75. g6 {[%clk 0:00:04.3]} 75... Rc6 {[%clk 0:00:02.3]} 76. g7 {[%clk 0:00:02.5]}
76... Rg6 {[%clk 0:00:02.7]} 77. Re7 {[%clk 0:00:03.3]} 77... b5 {[%clk
0:00:03]} 78. Ra7+ {[%clk 0:00:03]} 78... Kb4 {[%clk 0:00:02.9]} 79. f4 {[%clk
0:00:02.8]} 79... b2 {[%clk 0:00:03.3]} 80. f5 {[%clk 0:00:03.7]} 80... b1=Q
{[%clk 0:00:03.7]} 81. fxg6 {[%clk 0:00:04.4]} 81... Qc2+ {[%clk 0:00:04.4]} 0-1

[Event "*** Titled Tuesday Blitz"]
[Site "Chess.com"]
[Date "2020.04.28"]
[Round "6"]
[White "SlavenPastar"]
[Black "yoolund"]
[Result "0-1"]
[WhiteElo "2374"]
[BlackElo "2536"]
[TimeControl "180+1"]
[EndTime "11:09:20 PDT"]
[Termination "yoolund won by resignation"]

1. d4 {[%clk 0:03:00.9]} 1... Nf6 {[%clk 0:02:59.3]} 2. c4 {[%clk 0:03:01.4]}
2... e6 {[%clk 0:02:59.4]} 3. Nc3 {[%clk 0:03:01.3]} 3... Bb4 {[%clk 0:02:55.9]}
4. e3 {[%clk 0:03:01.8]} 4... d5 {[%clk 0:02:54.5]} 5. cxd5 {[%clk 0:03:01.6]}
5... exd5 {[%clk 0:02:53.9]} 6. Bd3 {[%clk 0:03:02.1]} 6... O-O {[%clk
0:02:52.7]} 7. Ne2 {[%clk 0:03:02.5]} 7... Bg4 {[%clk 0:02:47.1]} 8. Bd2 {[%clk
0:03:00.7]} 8... Nbd7 {[%clk 0:02:42.2]} 9. Rc1 {[%clk 0:03:00.6]} 9... c6
{[%clk 0:02:41.8]} 10. O-O {[%clk 0:02:59.6]} 10... Re8 {[%clk 0:02:39.7]} 11.
f3 {[%clk 0:02:54]} 11... Bh5 {[%clk 0:02:39.4]} 12. Qe1 {[%clk 0:02:54.2]}
12... c5 {[%clk 0:02:37.5]} 13. Qf2 {[%clk 0:02:52.1]} 13... cxd4 {[%clk
0:02:32.9]} 14. exd4 {[%clk 0:02:53]} 14... Bg6 {[%clk 0:02:30.1]} 15. Bxg6
{[%clk 0:02:52.4]} 15... hxg6 {[%clk 0:02:31]} 16. Bg5 {[%clk 0:02:43.3]} 16...
Nf8 {[%clk 0:02:21.4]} 17. Nf4 {[%clk 0:02:39.7]} 17... Bxc3 {[%clk 0:02:12.6]}
18. Rxc3 {[%clk 0:02:31.6]} 18... Ne6 {[%clk 0:02:11.8]} 19. Nxe6 {[%clk
0:02:28.3]} 19... Rxe6 {[%clk 0:02:10.8]} 20. Rfc1 {[%clk 0:02:26.7]} 20... Qb6
{[%clk 0:01:50.2]} 21. h3 {[%clk 0:01:50.1]} 21... Rae8 {[%clk 0:01:44.5]} 22.
R1c2 {[%clk 0:01:46.5]} 22... Re1+ {[%clk 0:01:12]} 23. Kh2 {[%clk 0:01:45.8]}
23... Qd6+ {[%clk 0:01:10.5]} 24. g3 {[%clk 0:01:37.4]} 24... Qe6 {[%clk
0:00:52.3]} 25. Kg2 {[%clk 0:01:28]} 25... Nh5 {[%clk 0:00:36.8]} 26. Rc8 {[%clk
0:01:05.4]} 26... Rxc8 {[%clk 0:00:24.3]} 27. Rxc8+ {[%clk 0:01:06.3]} 27...
Qxc8 {[%clk 0:00:15.1]} 28. Qxe1 {[%clk 0:01:05.7]} 28... Qc2+ {[%clk
0:00:14.4]} 29. Qd2 {[%clk 0:01:03.5]} 29... Qxd2+ {[%clk 0:00:13.3]} 30. Bxd2
{[%clk 0:01:03.3]} 30... Nf6 {[%clk 0:00:14.2]} 31. Kf2 {[%clk 0:01:00.3]} 31...
Nd7 {[%clk 0:00:13.7]} 32. Ke3 {[%clk 0:00:59.7]} 32... f6 {[%clk 0:00:13.6]}
33. Kd3 {[%clk 0:00:56.7]} 33... Kf7 {[%clk 0:00:13]} 34. h4 {[%clk 0:00:56.4]}
34... Ke6 {[%clk 0:00:10.8]} 35. b3 {[%clk 0:00:55.3]} 35... Nb8 {[%clk
0:00:08.5]} 36. Bb4 {[%clk 0:00:50.2]} 36... Nc6 {[%clk 0:00:08.3]} 37. Bf8
{[%clk 0:00:45.7]} 37... Kf7 {[%clk 0:00:07.4]} 38. Bc5 {[%clk 0:00:46.1]} 38...
b6 {[%clk 0:00:07.9]} 39. Ba3 {[%clk 0:00:42.6]} 39... Ke6 {[%clk 0:00:07.8]}
40. Ke3 {[%clk 0:00:35]} 40... Kf7 {[%clk 0:00:07.4]} 41. Kd3 {[%clk 0:00:26.9]}
41... Ke6 {[%clk 0:00:07.4]} 42. Kc3 {[%clk 0:00:27.2]} 42... Kf7 {[%clk
0:00:06.6]} 43. Bc1 {[%clk 0:00:26.5]} 43... Ke6 {[%clk 0:00:06.1]} 44. a3
{[%clk 0:00:26.8]} 44... Kd7 {[%clk 0:00:05.7]} 45. b4 {[%clk 0:00:27]} 45... b5
{[%clk 0:00:05.4]} 46. Be3 {[%clk 0:00:25.3]} 46... a6 {[%clk 0:00:05.5]} 47.
Kb3 {[%clk 0:00:24.7]} 47... Ke6 {[%clk 0:00:05.4]} 48. a4 {[%clk 0:00:23.5]}
48... Kf5 {[%clk 0:00:04.4]} 49. axb5 {[%clk 0:00:22]} 49... axb5 {[%clk
0:00:05.3]} 50. g4+ {[%clk 0:00:21.6]} 50... Ke6 {[%clk 0:00:05.8]} 51. Kc3
{[%clk 0:00:22]} 51... Kf7 {[%clk 0:00:05.4]} 52. Bd2 {[%clk 0:00:20.5]} 52...
Ke6 {[%clk 0:00:05.2]} 53. Kd3 {[%clk 0:00:21]} 53... Kf7 {[%clk 0:00:04.9]} 54.
Kc3 {[%clk 0:00:18.7]} 54... Ke6 {[%clk 0:00:05.3]} 55. Be1 {[%clk 0:00:18.1]}
55... Kf7 {[%clk 0:00:05.4]} 56. Bg3 {[%clk 0:00:18.6]} 56... Ke6 {[%clk
0:00:05.9]} 57. Bc7 {[%clk 0:00:18.5]} 57... Kf7 {[%clk 0:00:06.4]} 58. Bd6
{[%clk 0:00:18.6]} 58... Ke6 {[%clk 0:00:06.9]} 59. Bc5 {[%clk 0:00:19.2]} 59...
Kf7 {[%clk 0:00:07.3]} 60. Kd3 {[%clk 0:00:19.8]} 60... Ke6 {[%clk 0:00:07.4]}
61. Ke3 {[%clk 0:00:20.3]} 61... Kf7 {[%clk 0:00:07.7]} 62. f4 {[%clk
0:00:20.8]} 62... Ke6 {[%clk 0:00:07.5]} 63. Kf3 {[%clk 0:00:21.2]} 63... f5
{[%clk 0:00:07.2]} 64. h5 {[%clk 0:00:19.4]} 64... fxg4+ {[%clk 0:00:05.6]} 65.
Kxg4 {[%clk 0:00:18.8]} 65... gxh5+ {[%clk 0:00:06.5]} 66. Kg5 {[%clk
0:00:16.1]} 66... Ne7 {[%clk 0:00:02]} 67. Bxe7 {[%clk 0:00:15]} 67... Kxe7
{[%clk 0:00:02.9]} 68. Kg6 {[%clk 0:00:06.9]} 68... h4 {[%clk 0:00:01.8]} 69.
Kxg7 {[%clk 0:00:06.4]} 69... h3 {[%clk 0:00:02.7]} 70. f5 {[%clk 0:00:07.2]}
70... h2 {[%clk 0:00:03.6]} 71. f6+ {[%clk 0:00:08.1]} 71... Ke6 {[%clk
0:00:03.1]} 72. f7 {[%clk 0:00:09]} 72... h1=Q {[%clk 0:00:03.6]} 73. f8=Q
{[%clk 0:00:09.3]} 73... Qg2+ {[%clk 0:00:04.5]} 74. Kh8 {[%clk 0:00:09]} 74...
Qh3+ {[%clk 0:00:04.1]} 75. Kg8 {[%clk 0:00:09.3]} 75... Qg4+ {[%clk 0:00:03.9]}
76. Kh8 {[%clk 0:00:09.4]} 76... Qh5+ {[%clk 0:00:03.3]} 77. Kg8 {[%clk
0:00:09.5]} 77... Qg6+ {[%clk 0:00:03]} 78. Qg7 {[%clk 0:00:08.4]} 78... Qxg7+
{[%clk 0:00:02.3]} 79. Kxg7 {[%clk 0:00:09.3]} 79... Kf5 {[%clk 0:00:03.2]} 80.
Kf7 {[%clk 0:00:10]} 80... Ke4 {[%clk 0:00:04.1]} 81. Ke6 {[%clk 0:00:10.3]}
81... Kxd4 {[%clk 0:00:05]} 82. Kd6 {[%clk 0:00:11.2]} 82... Kc4 {[%clk
0:00:05.7]} 83. Kc6 {[%clk 0:00:11.7]} 83... Kxb4 {[%clk 0:00:06.5]} 84. Kxd5
{[%clk 0:00:12.6]} 84... Kc3 {[%clk 0:00:06.1]} 85. Ke4 {[%clk 0:00:12.3]} 85...
b4 {[%clk 0:00:07]} 0-1

[Event "*** Titled Tuesday Blitz"]
[Site "Chess.com"]
[Date "2020.04.28"]
[Round "6"]
[White "bakki78"]
[Black "Suleyman_Chess06"]
[Result "1-0"]
[WhiteElo "2717"]
[BlackElo "2370"]
[TimeControl "180+1"]
[EndTime "11:09:28 PDT"]
[Termination "bakki78 won by checkmate"]

1. e4 {[%clk 0:03:00.9]} 1... e6 {[%clk 0:02:59.3]} 2. d4 {[%clk 0:03:00.6]}
2... d5 {[%clk 0:02:59.6]} 3. e5 {[%clk 0:03:00.7]} 3... c5 {[%clk 0:02:58.6]}
4. c3 {[%clk 0:03:00.8]} 4... Nc6 {[%clk 0:02:58.5]} 5. Nf3 {[%clk 0:03:00.9]}
5... Qb6 {[%clk 0:02:58.2]} 6. a3 {[%clk 0:03:00.9]} 6... c4 {[%clk 0:02:57]} 7.
Nbd2 {[%clk 0:02:57.9]} 7... Na5 {[%clk 0:02:56.4]} 8. g3 {[%clk 0:02:58.1]}
8... Bd7 {[%clk 0:02:56.1]} 9. Bg2 {[%clk 0:02:57.2]} 9... Ne7 {[%clk
0:02:55.6]} 10. O-O {[%clk 0:02:56.1]} 10... Nc8 {[%clk 0:02:52.6]} 11. Nh4
{[%clk 0:02:54.8]} 11... Qc6 {[%clk 0:02:46.2]} 12. f4 {[%clk 0:02:53.3]} 12...
g6 {[%clk 0:02:45.6]} 13. Nhf3 {[%clk 0:02:44.8]} 13... Nb6 {[%clk 0:02:45.3]}
14. g4 {[%clk 0:02:40.6]} 14... O-O-O {[%clk 0:02:40.9]} 15. Ng5 {[%clk
0:02:39.1]} 15... Be8 {[%clk 0:02:38]} 16. f5 {[%clk 0:02:39.1]} 16... h6 {[%clk
0:02:30.9]} 17. Nh3 {[%clk 0:02:37.2]} 17... gxf5 {[%clk 0:02:21.4]} 18. gxf5
{[%clk 0:02:36.5]} 18... Be7 {[%clk 0:02:19.9]} 19. Nf4 {[%clk 0:02:22.9]} 19...
Rg8 {[%clk 0:02:11.1]} 20. Kh1 {[%clk 0:02:18.1]} 20... Bg5 {[%clk 0:01:55.9]}
21. Bh3 {[%clk 0:02:10.6]} 21... Bd7 {[%clk 0:01:54.1]} 22. Rb1 {[%clk
0:02:03.1]} 22... Bxf4 {[%clk 0:01:38.7]} 23. Rxf4 {[%clk 0:02:02.2]} 23... exf5
{[%clk 0:01:39.1]} 24. Nf1 {[%clk 0:01:59.2]} 24... Nb3 {[%clk 0:01:34.5]} 25.
Be3 {[%clk 0:01:57.5]} 25... f6 {[%clk 0:01:05.1]} 26. exf6 {[%clk 0:01:50.9]}
26... Qxf6 {[%clk 0:01:05.1]} 27. Ng3 {[%clk 0:01:50.4]} 27... Rde8 {[%clk
0:00:52.2]} 28. Qf3 {[%clk 0:01:48.1]} 28... Qe7 {[%clk 0:00:41]} 29. Nxf5
{[%clk 0:01:42.7]} 29... Bxf5 {[%clk 0:00:39.8]} 30. Rxf5 {[%clk 0:01:40.4]}
30... Kb8 {[%clk 0:00:37.2]} 31. Bf4+ {[%clk 0:01:38.7]} 31... Ka8 {[%clk
0:00:37]} 32. Re5 {[%clk 0:01:38.7]} 32... Qf7 {[%clk 0:00:32.5]} 33. Rf1 {[%clk
0:01:26.7]} 33... a6 {[%clk 0:00:22.5]} 34. Rxe8+ {[%clk 0:00:45.9]} 34... Qxe8
{[%clk 0:00:17.3]} 35. Bg2 {[%clk 0:00:32.4]} 35... Rf8 {[%clk 0:00:14.4]} 36.
Qd1 {[%clk 0:00:28.8]} 36... Qd7 {[%clk 0:00:13.5]} 37. Bxh6 {[%clk 0:00:26.8]}
37... Rh8 {[%clk 0:00:13.8]} 38. Bf4 {[%clk 0:00:25.5]} 38... Na4 {[%clk
0:00:14]} 39. Qf3 {[%clk 0:00:21.8]} 39... Nxb2 {[%clk 0:00:13.7]} 40. Qxd5
{[%clk 0:00:20.9]} 40... Qxd5 {[%clk 0:00:13.9]} 41. Bxd5 {[%clk 0:00:20.9]}
41... Na5 {[%clk 0:00:12.1]} 42. Bc7 {[%clk 0:00:18.7]} 42... Nb3 {[%clk
0:00:10.1]} 43. Rb1 {[%clk 0:00:15]} 43... Na4 {[%clk 0:00:06.6]} 44. Bxc4
{[%clk 0:00:14.9]} 44... Nd2 {[%clk 0:00:06.5]} 45. Rb4 {[%clk 0:00:14.7]} 45...
Nxc3 {[%clk 0:00:06.4]} 46. Bd3 {[%clk 0:00:13.4]} 46... Nf3 {[%clk 0:00:05.3]}
47. Rb3 {[%clk 0:00:10.7]} 47... Rg8 {[%clk 0:00:05.5]} 48. Bg3 {[%clk
0:00:09.2]} 48... Nd1 {[%clk 0:00:05]} 49. Be4 {[%clk 0:00:07.7]} 49... Nd2
{[%clk 0:00:05.7]} 50. Bxb7+ {[%clk 0:00:05.9]} 50... Ka7 {[%clk 0:00:06]} 51.
Rd3 {[%clk 0:00:06.3]} 51... Kxb7 {[%clk 0:00:05.1]} 52. Rxd2 {[%clk 0:00:06.4]}
52... Nc3 {[%clk 0:00:06]} 53. d5 {[%clk 0:00:05.2]} 53... Ne4 {[%clk
0:00:06.6]} 54. Rd3 {[%clk 0:00:04.8]} 54... Rxg3 {[%clk 0:00:05.5]} 55. Rxg3
{[%clk 0:00:03.6]} 55... Nxg3+ {[%clk 0:00:05.9]} 56. hxg3 {[%clk 0:00:03.8]}
56... Kc7 {[%clk 0:00:06.8]} 57. Kg2 {[%clk 0:00:03.3]} 57... Kd6 {[%clk
0:00:07.6]} 58. Kf3 {[%clk 0:00:03.6]} 58... Kxd5 {[%clk 0:00:08.5]} 59. Kf4
{[%clk 0:00:04.1]} 59... a5 {[%clk 0:00:09.4]} 60. Kf5 {[%clk 0:00:04.2]} 60...
a4 {[%clk 0:00:10.3]} 61. g4 {[%clk 0:00:04.8]} 61... Kc4 {[%clk 0:00:11.2]} 62.
g5 {[%clk 0:00:05.3]} 62... Kb3 {[%clk 0:00:12.1]} 63. g6 {[%clk 0:00:05.8]}
63... Kxa3 {[%clk 0:00:13]} 64. g7 {[%clk 0:00:05.9]} 64... Kb2 {[%clk
0:00:13.9]} 65. g8=Q {[%clk 0:00:06]} 65... a3 {[%clk 0:00:14.8]} 66. Qb8+
{[%clk 0:00:06.3]} 66... Ka1 {[%clk 0:00:14.8]} 67. Qe5+ {[%clk 0:00:06]} 67...
Kb1 {[%clk 0:00:14.9]} 68. Qb5+ {[%clk 0:00:05.7]} 68... Ka1 {[%clk 0:00:14.9]}
69. Qe5+ {[%clk 0:00:04.1]} 69... Kb1 {[%clk 0:00:14.9]} 70. Qe1+ {[%clk
0:00:03.9]} 70... Kb2 {[%clk 0:00:14.8]} 71. Qd2+ {[%clk 0:00:03.9]} 71... Kb1
{[%clk 0:00:15.1]} 72. Qb4+ {[%clk 0:00:03.9]} 72... Ka2 {[%clk 0:00:13.2]} 73.
Ke4 {[%clk 0:00:03.9]} 73... Ka1 {[%clk 0:00:13.7]} 74. Qxa3+ {[%clk 0:00:04.1]}
74... Kb1 {[%clk 0:00:14.5]} 75. Qd3+ {[%clk 0:00:04.7]} 75... Kb2 {[%clk
0:00:14.1]} 76. Kd4 {[%clk 0:00:04.9]} 76... Kc1 {[%clk 0:00:14.5]} 77. Qe2
{[%clk 0:00:05.1]} 77... Kb1 {[%clk 0:00:14.3]} 78. Kc3 {[%clk 0:00:05.3]} 78...
Ka1 {[%clk 0:00:14.3]} 79. Qb2# {[%clk 0:00:05.1]} 1-0

[Event "*** Titled Tuesday Blitz"]
[Site "Chess.com"]
[Date "2020.04.28"]
[Round "6"]
[White "rogapa"]
[Black "Munkhzul_Turmunkh"]
[Result "1/2-1/2"]
[WhiteElo "2734"]
[BlackElo "2517"]
[TimeControl "180+1"]
[EndTime "11:09:36 PDT"]
[Termination "Game drawn - insufficient material"]

1. e4 {[%clk 0:03:00.4]} 1... c5 {[%clk 0:02:58.6]} 2. Nf3 {[%clk 0:03:00]} 2...
d6 {[%clk 0:02:59.1]} 3. d4 {[%clk 0:03:00.9]} 3... cxd4 {[%clk 0:02:59.8]} 4.
Nxd4 {[%clk 0:03:01.4]} 4... Nf6 {[%clk 0:03:00.2]} 5. Nc3 {[%clk 0:03:01.9]}
5... a6 {[%clk 0:03:00.7]} 6. Bg5 {[%clk 0:03:01.4]} 6... e6 {[%clk 0:03:00.6]}
7. f4 {[%clk 0:03:00.9]} 7... Qb6 {[%clk 0:03:00.7]} 8. Qd3 {[%clk 0:02:59.1]}
8... Be7 {[%clk 0:02:44.7]} 9. O-O-O {[%clk 0:02:58.4]} 9... Nbd7 {[%clk
0:02:44]} 10. Qg3 {[%clk 0:02:55]} 10... Qc7 {[%clk 0:02:34.4]} 11. Bd3 {[%clk
0:02:53.3]} 11... b5 {[%clk 0:02:30.7]} 12. Rhe1 {[%clk 0:02:53]} 12... Bb7
{[%clk 0:02:28.2]} 13. e5 {[%clk 0:02:52.4]} 13... dxe5 {[%clk 0:02:10]} 14.
fxe5 {[%clk 0:02:53.3]} 14... Nd5 {[%clk 0:02:02.8]} 15. Nxd5 {[%clk 0:01:49.1]}
15... Bxd5 {[%clk 0:01:40.1]} 16. Bxe7 {[%clk 0:01:48.2]} 16... Kxe7 {[%clk
0:01:40.7]} 17. Qg5+ {[%clk 0:01:32.9]} 17... Kf8 {[%clk 0:01:34.3]} 18. Be4
{[%clk 0:01:32.7]} 18... h6 {[%clk 0:01:25.8]} 19. Qf4 {[%clk 0:01:25.7]} 19...
Kg8 {[%clk 0:00:48.2]} 20. Bxd5 {[%clk 0:01:24.7]} 20... exd5 {[%clk 0:00:46.3]}
21. Qf3 {[%clk 0:01:24.1]} 21... Nb6 {[%clk 0:00:32.7]} 22. e6 {[%clk
0:01:23.6]} 22... fxe6 {[%clk 0:00:27.4]} 23. Rxe6 {[%clk 0:01:24.5]} 23... Rf8
{[%clk 0:00:24.5]} 24. Qd3 {[%clk 0:01:18.1]} 24... Nc4 {[%clk 0:00:20.8]} 25.
b3 {[%clk 0:01:16.1]} 25... Qf4+ {[%clk 0:00:17.5]} 26. Kb1 {[%clk 0:01:15.6]}
26... Ne5 {[%clk 0:00:17.1]} 27. Qe2 {[%clk 0:01:14.6]} 27... Ng4 {[%clk
0:00:15.8]} 28. g3 {[%clk 0:01:11.6]} 28... Qg5 {[%clk 0:00:15.6]} 29. h4 {[%clk
0:01:10.9]} 29... Qh5 {[%clk 0:00:15.5]} 30. Re7 {[%clk 0:00:59.8]} 30... Nf6
{[%clk 0:00:14]} 31. Qe6+ {[%clk 0:00:45.4]} 31... Kh7 {[%clk 0:00:12.7]} 32.
Rf1 {[%clk 0:00:43.2]} 32... Qg6 {[%clk 0:00:09.9]} 33. Nf5 {[%clk 0:00:42.8]}
33... Rhg8 {[%clk 0:00:09.7]} 34. h5 {[%clk 0:00:36.5]} 34... Qxh5 {[%clk
0:00:09.1]} 35. Kb2 {[%clk 0:00:31.2]} 35... Qg6 {[%clk 0:00:08.3]} 36. Rf4
{[%clk 0:00:31.1]} 36... Ne4 {[%clk 0:00:08.1]} 37. Qe5 {[%clk 0:00:29.1]} 37...
Qf6 {[%clk 0:00:07.7]} 38. g4 {[%clk 0:00:24.7]} 38... Qxe5+ {[%clk 0:00:07.5]}
39. Rxe5 {[%clk 0:00:25.6]} 39... Ng5 {[%clk 0:00:05.3]} 40. Rxd5 {[%clk
0:00:23.5]} 40... g6 {[%clk 0:00:05.1]} 41. Rd7+ {[%clk 0:00:23.1]} 41... Kh8
{[%clk 0:00:05.3]} 42. Rd6 {[%clk 0:00:18.7]} 42... gxf5 {[%clk 0:00:05.1]} 43.
Rxh6+ {[%clk 0:00:19.6]} 43... Kg7 {[%clk 0:00:05.3]} 44. Rxa6 {[%clk
0:00:19.9]} 44... fxg4 {[%clk 0:00:05.6]} 45. Rxg4 {[%clk 0:00:20.8]} 45... Rf5
{[%clk 0:00:06.3]} 46. Ra7+ {[%clk 0:00:20.2]} 46... Kg6 {[%clk 0:00:06]} 47.
Ra6+ {[%clk 0:00:21.1]} 47... Kh5 {[%clk 0:00:06.3]} 48. Rb4 {[%clk 0:00:22]}
48... Re8 {[%clk 0:00:06]} 49. Rb6 {[%clk 0:00:22.1]} 49... Ree5 {[%clk
0:00:06.3]} 50. a4 {[%clk 0:00:21.2]} 50... bxa4 {[%clk 0:00:05.8]} 51. Rxa4
{[%clk 0:00:22.1]} 51... Ne4 {[%clk 0:00:05.4]} 52. Rc4 {[%clk 0:00:21.5]} 52...
Kg5 {[%clk 0:00:05.3]} 53. Rbb4 {[%clk 0:00:21.7]} 53... Nd2 {[%clk 0:00:05.3]}
54. Rg4+ {[%clk 0:00:21.7]} 54... Kf6 {[%clk 0:00:05.6]} 55. Rb6+ {[%clk
0:00:21.7]} 55... Re6 {[%clk 0:00:06]} 56. Rxe6+ {[%clk 0:00:22]} 56... Kxe6
{[%clk 0:00:06.9]} 57. Rd4 {[%clk 0:00:22.7]} 57... Nf3 {[%clk 0:00:06.1]} 58.
Rd1 {[%clk 0:00:22]} 58... Ne5 {[%clk 0:00:05.7]} 59. b4 {[%clk 0:00:22]} 59...
Nc4+ {[%clk 0:00:03.8]} 60. Kb3 {[%clk 0:00:22.3]} 60... Nd6 {[%clk 0:00:03.6]}
61. c3 {[%clk 0:00:22.3]} 61... Rf3 {[%clk 0:00:03.3]} 62. Re1+ {[%clk
0:00:22.4]} 62... Kd7 {[%clk 0:00:03.6]} 63. Re5 {[%clk 0:00:21.6]} 63... Kc6
{[%clk 0:00:03.8]} 64. Rc5+ {[%clk 0:00:21.7]} 64... Kb6 {[%clk 0:00:03.2]} 65.
Ka4 {[%clk 0:00:22.6]} 65... Ne4 {[%clk 0:00:02.7]} 66. Rb5+ {[%clk 0:00:22.8]}
66... Kc6 {[%clk 0:00:02.4]} 67. Rh5 {[%clk 0:00:22.8]} 67... Nxc3+ {[%clk
0:00:02.5]} 68. Ka5 {[%clk 0:00:23]} 68... Nd5 {[%clk 0:00:02.1]} 69. b5+ {[%clk
0:00:21.9]} 69... Kc5 {[%clk 0:00:02.1]} 70. Ka6 {[%clk 0:00:21.1]} 70... Ra3+
{[%clk 0:00:01.9]} 71. Kb7 {[%clk 0:00:21.5]} 71... Rb3 {[%clk 0:00:02]} 72. Kc8
{[%clk 0:00:20.9]} 72... Rxb5 {[%clk 0:00:02]} 73. Kd7 {[%clk 0:00:21.8]} 73...
Rb7+ {[%clk 0:00:01.9]} 74. Ke6 {[%clk 0:00:20.4]} 74... Rb6+ {[%clk 0:00:02.2]}
75. Ke5 {[%clk 0:00:20.4]} 75... Nc3 {[%clk 0:00:01.8]} 76. Kf4+ {[%clk
0:00:20.1]} 76... Kc4 {[%clk 0:00:02.3]} 77. Rh8 {[%clk 0:00:20.3]} 77... Rb5
{[%clk 0:00:02.8]} 78. Rc8+ {[%clk 0:00:20.5]} 78... Kd4 {[%clk 0:00:02.4]} 79.
Rd8+ {[%clk 0:00:20.5]} 79... Nd5+ {[%clk 0:00:03.1]} 80. Kf3 {[%clk 0:00:21.2]}
80... Rb3+ {[%clk 0:00:03.1]} 81. Ke2 {[%clk 0:00:21.6]} 81... Rb2+ {[%clk
0:00:03.5]} 82. Kd1 {[%clk 0:00:22.5]} 82... Ra2 {[%clk 0:00:03.2]} 83. Kc1
{[%clk 0:00:22.3]} 83... Kc4 {[%clk 0:00:03.5]} 84. Kd1 {[%clk 0:00:22.6]} 84...
Rh2 {[%clk 0:00:03.5]} 85. Ke1 {[%clk 0:00:22.9]} 85... Nf4 {[%clk 0:00:03.5]}
86. Kd1 {[%clk 0:00:22.5]} 86... Nd3 {[%clk 0:00:03.8]} 87. Rc8+ {[%clk
0:00:21.8]} 87... Nc5 {[%clk 0:00:04.1]} 88. Ke1 {[%clk 0:00:21.1]} 88... Kc3
{[%clk 0:00:04.4]} 89. Rxc5+ {[%clk 0:00:20.2]} 89... Kd4 {[%clk 0:00:04.8]} 90.
Rf5 {[%clk 0:00:20.5]} 90... Rg2 {[%clk 0:00:05.2]} 91. Rf2 {[%clk 0:00:20.4]}
91... Rxf2 {[%clk 0:00:05.2]} 92. Kxf2 {[%clk 0:00:21.3]} 1/2-1/2